[Event "January 2 Early 2024"]
[Site "https://www.chess.com"]
[Date "2024.01.02"]
[Round "9"]
[White "Zou, Chen"]
[Black "Santos Latasa, Jaime"]
[Result "1-0"]
[Board "21"]
[TimeControl "180+1"]
[WhiteFideId "8610959"]
[BlackFideId "2293307"]
[WhiteElo "2781"]
[BlackElo "2946"]
[WhiteTeam "CHN"]
[BlackTeam "ESP"]
[WhiteClock "0:00:07"]
[BlackClock "0:01:02"]

1. e4 {[%clk 0:03:00]}  c5 {[%clk 0:02:59]} 2. Nf3 {[%clk 0:02:53]}  Nc6 {[%clk 0:02:59]} 3. d4 {[%clk 0:02:53]}  cxd4 {[%clk 0:03:00]} 4. Nxd4 {[%clk 0:02:53]}  Nf6 {[%clk 0:03:01]} 5. Nc3 {[%clk 0:02:53]}  h5 {[%clk 0:03:02]} 6. Be2 {[%clk 0:02:52]}  g6 {[%clk 0:03:01]} 7. h3 {[%clk 0:02:51]}  Bg7 {[%clk 0:03:01]} 8. Be3 {[%clk 0:02:52]}  d5 {[%clk 0:03:01]} 9. exd5 {[%clk 0:02:49]}  Nxd5 {[%clk 0:03:01]} 10. Nxd5 {[%clk 0:02:21]}  Qxd5 {[%clk 0:03:00]} 11. Nxc6 {[%clk 0:02:22]}  Qxc6 {[%clk 0:02:57]} 12. c3 {[%clk 0:02:19]}  Bf5 {[%clk 0:02:56]} 13. O-O {[%clk 0:02:17]}  Be4 {[%clk 0:02:49]} 14. Bf3 {[%clk 0:01:57]}  Bxf3 {[%clk 0:02:47]} 15. Qxf3 {[%clk 0:01:58]}  Qxf3 {[%clk 0:02:47]} 16. gxf3 {[%clk 0:01:58]}  Kd7 {[%clk 0:02:41]} 17. Rfd1+ {[%clk 0:01:58]}  Kc7 {[%clk 0:02:41]} 18. Rd3 {[%clk 0:01:59]}  Rhd8 {[%clk 0:02:40]} 19. Rad1 {[%clk 0:01:53]}  Rxd3 {[%clk 0:02:40]} 20. Rxd3 {[%clk 0:01:54]}  a6 {[%clk 0:02:38]} 21. Kf1 {[%clk 0:01:51]}  b5 {[%clk 0:02:33]} 22. Ke2 {[%clk 0:01:45]}  Be5 {[%clk 0:02:30]} 23. Bc5 {[%clk 0:01:35]}  e6 {[%clk 0:02:26]} 24. Be3 {[%clk 0:01:30]}  Kc6 {[%clk 0:02:25]} 25. Bg5 {[%clk 0:01:27]}  Bc7 {[%clk 0:02:24]} 26. Bf6 {[%clk 0:01:21]}  a5 {[%clk 0:02:24]} 27. Bg5 {[%clk 0:01:17]}  e5 {[%clk 0:02:16]} 28. Be3 {[%clk 0:01:16]}  Re8 {[%clk 0:02:08]} 29. Rd1 {[%clk 0:01:16]}  a4 {[%clk 0:02:06]} 30. Rd2 {[%clk 0:01:14]}  f6 {[%clk 0:02:03]} 31. Rd1 {[%clk 0:01:15]}  g5 {[%clk 0:02:01]} 32. Rc1 {[%clk 0:01:15]}  e4 {[%clk 0:02:00]} 33. fxe4 {[%clk 0:01:14]}  Rxe4 {[%clk 0:02:01]} 34. Kf3 {[%clk 0:01:14]}  Rh4 {[%clk 0:02:00]} 35. Kg2 {[%clk 0:01:15]}  Rc4 {[%clk 0:02:00]} 36. b3 {[%clk 0:01:12]}  Re4 {[%clk 0:02:00]} 37. Kf3 {[%clk 0:01:09]}  Rh4 {[%clk 0:01:55]} 38. Kg2 {[%clk 0:01:09]}  g4 {[%clk 0:01:56]} 39. hxg4 {[%clk 0:01:08]}  hxg4 {[%clk 0:01:54]} 40. c4 {[%clk 0:00:50]}  b4 {[%clk 0:01:53]} 41. bxa4 {[%clk 0:00:50]}  Rh2+ {[%clk 0:01:51]} 42. Kg1 {[%clk 0:00:49]}  g3 {[%clk 0:01:50]} 43. Rb1 {[%clk 0:00:43]}  f5 {[%clk 0:01:32]} 44. Rxb4 {[%clk 0:00:37]}  f4 {[%clk 0:01:32]} 45. fxg3 {[%clk 0:00:35]}  fxg3 {[%clk 0:01:26]} 46. Rb5 {[%clk 0:00:31]}  Re2 {[%clk 0:01:25]} 47. Rc5+ {[%clk 0:00:28]}  Kd7 {[%clk 0:01:24]} 48. Rxc7+ {[%clk 0:00:16]}  Kxc7 {[%clk 0:01:25]} 49. Bf4+ {[%clk 0:00:16]}  Kc6 {[%clk 0:01:25]} 50. Bxg3 {[%clk 0:00:17]}  Rxa2 {[%clk 0:01:23]} 51. Bf2 {[%clk 0:00:17]}  Rxa4 {[%clk 0:01:23]} 52. c5 {[%clk 0:00:17]}  Kd5 {[%clk 0:01:22]} 53. Kg2 {[%clk 0:00:18]}  Ra3 {[%clk 0:01:23]} 54. Kf1 {[%clk 0:00:18]}  Ke4 {[%clk 0:01:23]} 55. Bh4 {[%clk 0:00:15]}  Ra7 {[%clk 0:01:16]} 56. Ke1 {[%clk 0:00:12]}  Rh7 {[%clk 0:01:14]} 57. Bg3 {[%clk 0:00:10]}  Ke3 {[%clk 0:01:08]} 58. Kd1 {[%clk 0:00:10]}  Kd3 {[%clk 0:01:08]} 59. Kc1 {[%clk 0:00:08]}  Rh5 {[%clk 0:01:08]} 60. Bd6 {[%clk 0:00:08]}  Rh2 {[%clk 0:01:02]} 61. Bxh2 {[%clk 0:00:07]} 1-0

[Event "January 2 Early 2024"]
[Site "https://www.chess.com"]
[Date "2024.01.02"]
[Round "9"]
[White "Bryakin, Mikhail"]
[Black "Bluebaum, Matthias"]
[Result "1-0"]
[Board "22"]
[TimeControl "180+1"]
[WhiteFideId "4165314"]
[BlackFideId "24651516"]
[WhiteElo "2852"]
[BlackElo "2996"]
[WhiteTeam "SRB"]
[BlackTeam "GER"]
[WhiteClock "0:00:06"]
[BlackClock "0:00:44"]

1. c4 {[%clk 0:02:58]}  e6 {[%clk 0:03:00]} 2. Nf3 {[%clk 0:02:58]}  d5 {[%clk 0:03:00]} 3. g3 {[%clk 0:02:58]}  Nf6 {[%clk 0:03:01]} 4. d4 {[%clk 0:02:58]}  Nc6 {[%clk 0:03:01]} 5. Bg2 {[%clk 0:02:53]}  Bd6 {[%clk 0:03:01]} 6. O-O {[%clk 0:02:52]}  O-O {[%clk 0:03:02]} 7. b3 {[%clk 0:02:45]}  dxc4 {[%clk 0:03:01]} 8. bxc4 {[%clk 0:02:45]}  e5 {[%clk 0:03:02]} 9. d5 {[%clk 0:02:44]}  Na5 {[%clk 0:03:02]} 10. Nfd2 {[%clk 0:02:40]}  c6 {[%clk 0:03:00]} 11. Nc3 {[%clk 0:02:35]}  cxd5 {[%clk 0:03:00]} 12. cxd5 {[%clk 0:02:34]}  Bd7 {[%clk 0:02:59]} 13. Bb2 {[%clk 0:02:30]}  Re8 {[%clk 0:02:35]} 14. Nde4 {[%clk 0:02:15]}  Nxe4 {[%clk 0:02:36]} 15. Nxe4 {[%clk 0:02:15]}  Bf8 {[%clk 0:02:36]} 16. Rc1 {[%clk 0:02:09]}  b5 {[%clk 0:02:21]} 17. Nd2 {[%clk 0:02:01]}  Rc8 {[%clk 0:02:13]} 18. e3 {[%clk 0:01:21]}  f6 {[%clk 0:02:08]} 19. Qe2 {[%clk 0:01:13]}  Qb6 {[%clk 0:02:08]} 20. h4 {[%clk 0:01:08]}  b4 {[%clk 0:02:04]} 21. Rxc8 {[%clk 0:01:05]}  Rxc8 {[%clk 0:02:05]} 22. Rc1 {[%clk 0:01:05]}  Rxc1+ {[%clk 0:02:02]} 23. Bxc1 {[%clk 0:01:06]}  Qc5 {[%clk 0:02:01]} 24. Qd1 {[%clk 0:01:06]}  f5 {[%clk 0:01:49]} 25. Bb2 {[%clk 0:00:40]}  e4 {[%clk 0:01:49]} 26. Nb3 {[%clk 0:00:32]}  Nxb3 {[%clk 0:01:49]} 27. axb3 {[%clk 0:00:27]}  a5 {[%clk 0:01:49]} 28. Bf1 {[%clk 0:00:26]}  Bd6 {[%clk 0:01:47]} 29. Bd4 {[%clk 0:00:13]}  Qc8 {[%clk 0:01:44]} 30. Qa1 {[%clk 0:00:13]}  Bf8 {[%clk 0:01:06]} 31. Qxa5 {[%clk 0:00:13]}  f4 {[%clk 0:01:06]} 32. exf4 {[%clk 0:00:11]}  Qc1 {[%clk 0:01:07]} 33. Qa6 {[%clk 0:00:06]}  Qd1 {[%clk 0:01:04]} 34. Qc4 {[%clk 0:00:05]}  Bd6 {[%clk 0:01:05]} 35. Be5 {[%clk 0:00:05]}  Bf8 {[%clk 0:00:55]} 36. d6+ {[%clk 0:00:06]}  Kh8 {[%clk 0:00:56]} 37. Qf7 {[%clk 0:00:04]}  Qxd6 {[%clk 0:00:40]} 38. Bxd6 {[%clk 0:00:04]}  Bxd6 {[%clk 0:00:41]} 39. Qxd7 {[%clk 0:00:04]}  Bf8 {[%clk 0:00:42]} 40. Qe8 {[%clk 0:00:04]}  Kg8 {[%clk 0:00:43]} 41. Bc4+ {[%clk 0:00:05]}  Kh8 {[%clk 0:00:44]} 42. Qxf8# {[%clk 0:00:06]} 1-0

[Event "January 2 Early 2024"]
[Site "https://www.chess.com"]
[Date "2024.01.02"]
[Round "9"]
[White "Zemlyanskii, Ivan"]
[Black "Vakhlamov, Igor L."]
[Result "1-0"]
[Board "23"]
[TimeControl "180+1"]
[WhiteFideId "24249971"]
[BlackFideId "24126748"]
[WhiteElo "2995"]
[BlackElo "2804"]
[WhiteTeam "RUS"]
[BlackTeam "RUS"]
[WhiteClock "0:00:27"]
[BlackClock "0:00:00"]

1. d4 {[%clk 0:03:00]}  d5 {[%clk 0:02:59]} 2. c4 {[%clk 0:03:01]}  e6 {[%clk 0:02:59]} 3. Nf3 {[%clk 0:03:01]}  Nf6 {[%clk 0:03:00]} 4. Qc2 {[%clk 0:03:02]}  Be7 {[%clk 0:02:54]} 5. cxd5 {[%clk 0:03:01]}  exd5 {[%clk 0:02:52]} 6. Bf4 {[%clk 0:03:01]}  c6 {[%clk 0:02:52]} 7. e3 {[%clk 0:03:02]}  O-O {[%clk 0:02:50]} 8. Nc3 {[%clk 0:03:02]}  Nbd7 {[%clk 0:02:50]} 9. Bd3 {[%clk 0:03:02]}  Re8 {[%clk 0:02:51]} 10. h3 {[%clk 0:03:03]}  Nf8 {[%clk 0:02:51]} 11. O-O {[%clk 0:03:03]}  Ng6 {[%clk 0:02:49]} 12. Bh2 {[%clk 0:03:04]}  Bd6 {[%clk 0:02:48]} 13. Bxd6 {[%clk 0:03:04]}  Qxd6 {[%clk 0:02:49]} 14. Rab1 {[%clk 0:03:05]}  a5 {[%clk 0:02:49]} 15. a3 {[%clk 0:03:04]}  b5 {[%clk 0:02:35]} 16. Rfc1 {[%clk 0:02:53]}  Bd7 {[%clk 0:02:34]} 17. Ne2 {[%clk 0:02:13]}  Ne4 {[%clk 0:02:19]} 18. Nd2 {[%clk 0:02:04]}  f5 {[%clk 0:02:00]} 19. Nf3 {[%clk 0:01:42]}  Qf6 {[%clk 0:01:51]} 20. Nf4 {[%clk 0:01:35]}  Rec8 {[%clk 0:00:50]} 21. Nxg6 {[%clk 0:01:21]}  Qxg6 {[%clk 0:00:51]} 22. Ne5 {[%clk 0:01:18]}  Qe6 {[%clk 0:00:46]} 23. Bxe4 {[%clk 0:01:06]}  fxe4 {[%clk 0:00:42]} 24. Qc5 {[%clk 0:01:06]}  Be8 {[%clk 0:00:41]} 25. Rc2 {[%clk 0:01:03]}  Rc7 {[%clk 0:00:35]} 26. Qb6 {[%clk 0:00:57]}  Qd6 {[%clk 0:00:28]} 27. Rbc1 {[%clk 0:00:47]}  Kf8 {[%clk 0:00:20]} 28. Rc5 {[%clk 0:00:35]}  a4 {[%clk 0:00:20]} 29. Rxb5 {[%clk 0:00:34]}  Raa7 {[%clk 0:00:16]} 30. Rb4 {[%clk 0:00:28]}  Kg8 {[%clk 0:00:11]} 31. Qb8 {[%clk 0:00:28]}  Re7 {[%clk 0:00:00]} 32. Qxd6 {[%clk 0:00:27]} 1-0

[Event "January 2 Early 2024"]
[Site "https://www.chess.com"]
[Date "2024.01.02"]
[Round "9"]
[White "Galchenko, Matvey"]
[Black "Oganian, Miran"]
[Result "1/2-1/2"]
[Board "28"]
[TimeControl "180+1"]
[WhiteFideId "24175480"]
[BlackFideId "4122488"]
[WhiteElo "2897"]
[BlackElo "2749"]
[WhiteTeam "FID"]
[BlackTeam "RUS"]
[WhiteClock "0:00:05"]
[BlackClock "0:00:02"]

1. e4 {[%clk 0:03:00]}  e6 {[%clk 0:02:59]} 2. d4 {[%clk 0:02:58]}  d5 {[%clk 0:03:00]} 3. e5 {[%clk 0:02:59]}  c5 {[%clk 0:03:00]} 4. c3 {[%clk 0:03:00]}  Nc6 {[%clk 0:03:00]} 5. Nf3 {[%clk 0:02:59]}  Nh6 {[%clk 0:03:01]} 6. a3 {[%clk 0:02:47]}  Nf5 {[%clk 0:02:59]} 7. dxc5 {[%clk 0:02:19]}  Bxc5 {[%clk 0:02:56]} 8. b4 {[%clk 0:02:18]}  Bb6 {[%clk 0:02:53]} 9. Bd3 {[%clk 0:02:13]}  Nh4 {[%clk 0:02:48]} 10. Nxh4 {[%clk 0:01:59]}  Qxh4 {[%clk 0:02:47]} 11. Qe2 {[%clk 0:01:59]}  Bd7 {[%clk 0:02:08]} 12. Nd2 {[%clk 0:01:56]}  h6 {[%clk 0:01:53]} 13. Nf3 {[%clk 0:01:55]}  Qe7 {[%clk 0:01:51]} 14. a4 {[%clk 0:01:52]}  a6 {[%clk 0:01:49]} 15. Ba3 {[%clk 0:01:51]}  Qd8 {[%clk 0:01:37]} 16. O-O {[%clk 0:01:45]}  Rc8 {[%clk 0:01:32]} 17. b5 {[%clk 0:01:41]}  axb5 {[%clk 0:01:30]} 18. axb5 {[%clk 0:01:41]}  Na5 {[%clk 0:01:29]} 19. Bb4 {[%clk 0:01:40]}  Nc4 {[%clk 0:01:28]} 20. Nd4 {[%clk 0:01:33]}  Bc5 {[%clk 0:01:17]} 21. Bxc5 {[%clk 0:00:47]}  Rxc5 {[%clk 0:01:18]} 22. f4 {[%clk 0:00:46]}  g6 {[%clk 0:01:13]} 23. Rf3 {[%clk 0:00:23]}  Nb6 {[%clk 0:01:07]} 24. f5 {[%clk 0:00:11]}  gxf5 {[%clk 0:01:05]} 25. Bxf5 {[%clk 0:00:11]}  Qc7 {[%clk 0:00:49]} 26. Bc2 {[%clk 0:00:06]}  Rxc3 {[%clk 0:00:49]} 27. Raf1 {[%clk 0:00:06]}  Rxf3 {[%clk 0:00:48]} 28. Qxf3 {[%clk 0:00:07]}  Rf8 {[%clk 0:00:42]} 29. Qf4 {[%clk 0:00:07]}  Kd8 {[%clk 0:00:32]} 30. Qxh6 {[%clk 0:00:07]}  Qc5 {[%clk 0:00:31]} 31. Qf4 {[%clk 0:00:05]}  Bxb5 {[%clk 0:00:18]} 32. Rb1 {[%clk 0:00:04]}  Bd7 {[%clk 0:00:16]} 33. h4 {[%clk 0:00:04]}  Kc7 {[%clk 0:00:17]} 34. h5 {[%clk 0:00:04]}  Rh8 {[%clk 0:00:16]} 35. h6 {[%clk 0:00:05]}  Rxh6 {[%clk 0:00:16]} 36. Qxh6 {[%clk 0:00:06]}  Qxd4+ {[%clk 0:00:17]} 37. Kh1 {[%clk 0:00:06]}  Qxe5 {[%clk 0:00:17]} 38. Qd2 {[%clk 0:00:04]}  Nc4 {[%clk 0:00:16]} 39. Qb4 {[%clk 0:00:05]}  b6 {[%clk 0:00:14]} 40. Bd3 {[%clk 0:00:05]}  Qd4 {[%clk 0:00:11]} 41. Bxc4 {[%clk 0:00:06]}  Qh4+ {[%clk 0:00:09]} 42. Kg1 {[%clk 0:00:06]}  Qd4+ {[%clk 0:00:10]} 43. Kh1 {[%clk 0:00:03]}  dxc4 {[%clk 0:00:10]} 44. Rc1 {[%clk 0:00:03]}  Qh4+ {[%clk 0:00:10]} 45. Kg1 {[%clk 0:00:03]}  Qd4+ {[%clk 0:00:10]} 46. Kh1 {[%clk 0:00:04]}  b5 {[%clk 0:00:07]} 47. Qa5+ {[%clk 0:00:03]}  Qb6 {[%clk 0:00:08]} 48. Qd2 {[%clk 0:00:03]}  e5 {[%clk 0:00:08]} 49. Qe1 {[%clk 0:00:02]}  Qd4 {[%clk 0:00:08]} 50. Rd1 {[%clk 0:00:02]}  Qf4 {[%clk 0:00:07]} 51. Rd2 {[%clk 0:00:03]}  Bc6 {[%clk 0:00:07]} 52. Rf2 {[%clk 0:00:03]}  Qh4+ {[%clk 0:00:06]} 53. Kg1 {[%clk 0:00:04]}  Qd4 {[%clk 0:00:07]} 54. Kh1 {[%clk 0:00:04]}  f6 {[%clk 0:00:07]} 55. Rxf6 {[%clk 0:00:04]}  Qe4 {[%clk 0:00:08]} 56. Rf7+ {[%clk 0:00:04]}  Kd6 {[%clk 0:00:07]} 57. Qd2+ {[%clk 0:00:04]}  Ke6 {[%clk 0:00:08]} 58. Rf2 {[%clk 0:00:03]}  Qh4+ {[%clk 0:00:08]} 59. Kg1 {[%clk 0:00:04]}  Qd4 {[%clk 0:00:08]} 60. Qh6+ {[%clk 0:00:04]}  Kd5 {[%clk 0:00:09]} 61. Qf6 {[%clk 0:00:01]}  c3 {[%clk 0:00:09]} 62. Qf7+ {[%clk 0:00:02]}  Kc5 {[%clk 0:00:09]} 63. Qe7+ {[%clk 0:00:02]}  Kc4 {[%clk 0:00:09]} 64. Qf7+ {[%clk 0:00:02]}  Bd5 {[%clk 0:00:09]} 65. Qc7+ {[%clk 0:00:03]}  Qc5 {[%clk 0:00:09]} 66. Qh7 {[%clk 0:00:01]}  e4 {[%clk 0:00:10]} 67. Qg7 {[%clk 0:00:02]}  b4 {[%clk 0:00:09]} 68. Qf6 {[%clk 0:00:02]}  b3 {[%clk 0:00:09]} 69. Qa6+ {[%clk 0:00:02]}  Qb5 {[%clk 0:00:10]} 70. Qc8+ {[%clk 0:00:02]}  Qc6 {[%clk 0:00:10]} 71. Qb8 {[%clk 0:00:02]}  b2 {[%clk 0:00:10]} 72. Rxb2 {[%clk 0:00:02]}  cxb2 {[%clk 0:00:10]} 73. Qxb2 {[%clk 0:00:03]}  Qc5+ {[%clk 0:00:11]} 74. Kh2 {[%clk 0:00:04]}  Qc7+ {[%clk 0:00:10]} 75. Kg1 {[%clk 0:00:04]}  Qc5+ {[%clk 0:00:11]} 76. Kh2 {[%clk 0:00:04]}  Qd4 {[%clk 0:00:11]} 77. Qc2+ {[%clk 0:00:04]}  Qc3 {[%clk 0:00:12]} 78. Qa4+ {[%clk 0:00:05]}  Kd3 {[%clk 0:00:12]} 79. Qd1+ {[%clk 0:00:04]}  Qd2 {[%clk 0:00:11]} 80. Qb1+ {[%clk 0:00:04]}  Qc2 {[%clk 0:00:11]} 81. Qf1+ {[%clk 0:00:04]}  Kd4 {[%clk 0:00:11]} 82. Qf6+ {[%clk 0:00:03]}  Kc4 {[%clk 0:00:11]} 83. Qa6+ {[%clk 0:00:03]}  Kd4 {[%clk 0:00:07]} 84. Qb6+ {[%clk 0:00:03]}  Qc5 {[%clk 0:00:07]} 85. Qb2+ {[%clk 0:00:04]}  Kd3 {[%clk 0:00:07]} 86. Qb1+ {[%clk 0:00:04]}  Qc2 {[%clk 0:00:08]} 87. Qf1+ {[%clk 0:00:03]}  Ke3 {[%clk 0:00:08]} 88. Qg1+ {[%clk 0:00:03]}  Qf2 {[%clk 0:00:08]} 89. Qc1+ {[%clk 0:00:03]}  Qd2 {[%clk 0:00:09]} 90. Qg1+ {[%clk 0:00:03]}  Kd3 {[%clk 0:00:09]} 91. Qf1+ {[%clk 0:00:04]}  Kc2 {[%clk 0:00:10]} 92. Qf5 {[%clk 0:00:03]}  Qh6+ {[%clk 0:00:07]} 93. Kg1 {[%clk 0:00:04]}  Qd2 {[%clk 0:00:08]} 94. Kh2 {[%clk 0:00:04]}  Kc1 {[%clk 0:00:07]} 95. Qf1+ {[%clk 0:00:04]}  Kb2 {[%clk 0:00:07]} 96. Qf6+ {[%clk 0:00:04]}  Kb1 {[%clk 0:00:06]} 97. Qb6+ {[%clk 0:00:03]}  Ka2 {[%clk 0:00:04]} 98. Qa7+ {[%clk 0:00:03]}  Kb3 {[%clk 0:00:05]} 99. Qb6+ {[%clk 0:00:03]}  Qb4 {[%clk 0:00:05]} 100. Qe3+ {[%clk 0:00:04]}  Ka4 {[%clk 0:00:05]} 101. Qa7+ {[%clk 0:00:04]}  Kb5 {[%clk 0:00:05]} 102. Qb8+ {[%clk 0:00:04]}  Kc5 {[%clk 0:00:05]} 103. Qf8+ {[%clk 0:00:04]}  Kc4 {[%clk 0:00:06]} 104. Qf1+ {[%clk 0:00:05]}  Kb3 {[%clk 0:00:05]} 105. Qb1+ {[%clk 0:00:05]}  Ka4 {[%clk 0:00:06]} 106. Qd1+ {[%clk 0:00:05]}  Qb3 {[%clk 0:00:05]} 107. Qd4+ {[%clk 0:00:05]}  Bc4 {[%clk 0:00:06]} 108. Qa7+ {[%clk 0:00:05]}  Kb4 {[%clk 0:00:06]} 109. Qe7+ {[%clk 0:00:05]}  Ka4 {[%clk 0:00:05]} 110. Qa7+ {[%clk 0:00:04]}  Kb4 {[%clk 0:00:06]} 111. Qe7+ {[%clk 0:00:04]}  Kc3 {[%clk 0:00:06]} 112. Qxe4 {[%clk 0:00:04]}  Qb8+ {[%clk 0:00:05]} 113. Kg1 {[%clk 0:00:05]}  Qb6+ {[%clk 0:00:05]} 114. Kh2 {[%clk 0:00:05]}  Qh6+ {[%clk 0:00:05]} 115. Kg1 {[%clk 0:00:06]}  Qc1+ {[%clk 0:00:05]} 116. Kh2 {[%clk 0:00:06]}  Qh6+ {[%clk 0:00:06]} 117. Kg3 {[%clk 0:00:06]}  Qg5+ {[%clk 0:00:06]} 118. Qg4 {[%clk 0:00:06]}  Qe5+ {[%clk 0:00:06]} 119. Qf4 {[%clk 0:00:07]}  Qg7+ {[%clk 0:00:06]} 120. Kh2 {[%clk 0:00:07]}  Qh7+ {[%clk 0:00:06]} 121. Kg1 {[%clk 0:00:07]}  Bd5 {[%clk 0:00:06]} 122. Qe5+ {[%clk 0:00:07]}  Kc4 {[%clk 0:00:06]} 123. Qf4+ {[%clk 0:00:07]}  Kc5 {[%clk 0:00:07]} 124. Qe3+ {[%clk 0:00:07]}  Kc6 {[%clk 0:00:07]} 125. Qc3+ {[%clk 0:00:08]}  Kd6 {[%clk 0:00:06]} 126. Qa3+ {[%clk 0:00:08]}  Kc6 {[%clk 0:00:06]} 127. Qa6+ {[%clk 0:00:08]}  Kc5 {[%clk 0:00:07]} 128. Qa5+ {[%clk 0:00:08]}  Kd4 {[%clk 0:00:08]} 129. Qd2+ {[%clk 0:00:09]}  Kc5 {[%clk 0:00:08]} 130. Qc3+ {[%clk 0:00:09]}  Kd6 {[%clk 0:00:08]} 131. Qf6+ {[%clk 0:00:09]}  Kc5 {[%clk 0:00:08]} 132. Qf8+ {[%clk 0:00:10]}  Kc4 {[%clk 0:00:07]} 133. Qf4+ {[%clk 0:00:10]}  Kb5 {[%clk 0:00:07]} 134. Qf1+ {[%clk 0:00:10]}  Kb6 {[%clk 0:00:06]} 135. Qf2+ {[%clk 0:00:11]}  Kb7 {[%clk 0:00:06]} 136. Qb2+ {[%clk 0:00:11]}  Kc8 {[%clk 0:00:06]} 137. Qc3+ {[%clk 0:00:10]}  Kd7 {[%clk 0:00:05]} 138. Qd2 {[%clk 0:00:07]}  Qb1+ {[%clk 0:00:04]} 139. Kf2 {[%clk 0:00:08]}  Qe4 {[%clk 0:00:04]} 140. Kg1 {[%clk 0:00:06]}  Qb1+ {[%clk 0:00:05]} 141. Kf2 {[%clk 0:00:07]}  Qe4 {[%clk 0:00:05]} 142. Kg1 {[%clk 0:00:07]}  Kd6 {[%clk 0:00:05]} 143. Qh6+ {[%clk 0:00:07]}  Kc5 {[%clk 0:00:06]} 144. Qc1+ {[%clk 0:00:07]}  Kb5 {[%clk 0:00:06]} 145. Qb2+ {[%clk 0:00:07]}  Kc6 {[%clk 0:00:06]} 146. Qc3+ {[%clk 0:00:07]}  Kd7 {[%clk 0:00:07]} 147. Qg7+ {[%clk 0:00:07]}  Kc8 {[%clk 0:00:07]} 148. Qf8+ {[%clk 0:00:07]}  Kb7 {[%clk 0:00:08]} 149. Qf2 {[%clk 0:00:07]}  Qb1+ {[%clk 0:00:07]} 150. Kh2 {[%clk 0:00:07]}  Qh7+ {[%clk 0:00:07]} 151. Kg1 {[%clk 0:00:08]}  Qh5 {[%clk 0:00:07]} 152. Qb2+ {[%clk 0:00:07]}  Kc6 {[%clk 0:00:06]} 153. Qc3+ {[%clk 0:00:08]}  Kd7 {[%clk 0:00:06]} 154. Qd2 {[%clk 0:00:07]}  Qe5 {[%clk 0:00:05]} 155. Qf2 {[%clk 0:00:07]}  Bc4 {[%clk 0:00:04]} 156. Qa7+ {[%clk 0:00:07]}  Kc6 {[%clk 0:00:03]} 157. Qa8+ {[%clk 0:00:07]}  Kc5 {[%clk 0:00:03]} 158. Qa5+ {[%clk 0:00:07]}  Bb5 {[%clk 0:00:03]} 159. Qa3+ {[%clk 0:00:07]}  Kb6 {[%clk 0:00:03]} 160. Qc1 {[%clk 0:00:04]}  Qd4+ {[%clk 0:00:03]} 161. Kh2 {[%clk 0:00:05]}  Qh4+ {[%clk 0:00:02]} 162. Kg1 {[%clk 0:00:05]} 1/2-1/2

[Event "January 2 Early 2024"]
[Site "https://www.chess.com"]
[Date "2024.01.02"]
[Round "9"]
[White "Kukhmazov, Arsen"]
[Black "Goltsev, Dmitry"]
[Result "0-1"]
[Board "29"]
[TimeControl "180+1"]
[WhiteFideId "24108260"]
[BlackFideId "24176710"]
[WhiteElo "2875"]
[BlackElo "2750"]
[WhiteTeam "FID"]
[BlackTeam "RUS"]
[WhiteClock "0:01:45"]
[BlackClock "0:01:22"]

1. d4 {[%clk 0:03:00]}  e6 {[%clk 0:03:00]} 2. c4 {[%clk 0:03:01]}  b6 {[%clk 0:03:00]} 3. a3 {[%clk 0:02:47]}  Bb7 {[%clk 0:03:00]} 4. Nc3 {[%clk 0:02:48]}  Nf6 {[%clk 0:02:59]} 5. Nf3 {[%clk 0:02:48]}  d5 {[%clk 0:02:59]} 6. Bg5 {[%clk 0:02:48]}  Be7 {[%clk 0:02:59]} 7. Bxf6 {[%clk 0:02:48]}  Bxf6 {[%clk 0:02:59]} 8. cxd5 {[%clk 0:02:49]}  exd5 {[%clk 0:03:00]} 9. g3 {[%clk 0:02:49]}  O-O {[%clk 0:02:59]} 10. Bg2 {[%clk 0:02:50]}  Re8 {[%clk 0:03:00]} 11. O-O {[%clk 0:02:51]}  Nd7 {[%clk 0:03:00]} 12. Rc1 {[%clk 0:02:50]}  a6 {[%clk 0:02:58]} 13. e3 {[%clk 0:02:50]}  Nf8 {[%clk 0:02:57]} 14. b4 {[%clk 0:02:47]}  Ng6 {[%clk 0:02:53]} 15. Qb3 {[%clk 0:02:47]}  Qd7 {[%clk 0:02:49]} 16. Rc2 {[%clk 0:02:39]}  Rac8 {[%clk 0:02:24]} 17. Rfc1 {[%clk 0:02:39]}  c5 {[%clk 0:02:21]} 18. bxc5 {[%clk 0:02:33]}  bxc5 {[%clk 0:02:22]} 19. dxc5 {[%clk 0:02:34]}  Rxc5 {[%clk 0:02:19]} 20. Na4 {[%clk 0:02:23]}  Rxc2 {[%clk 0:02:07]} 21. Rxc2 {[%clk 0:02:24]}  Bc6 {[%clk 0:01:38]} 22. Nc5 {[%clk 0:02:23]}  Qa7 {[%clk 0:01:33]} 23. Qd3 {[%clk 0:02:20]}  Bb5 {[%clk 0:01:30]} 24. Qxd5 {[%clk 0:02:18]}  Rd8 {[%clk 0:01:29]} 25. Ne6 {[%clk 0:01:46]}  Rxd5 {[%clk 0:01:21]} 26. Rc8+ {[%clk 0:01:45]}  Bd8 {[%clk 0:01:22]} 0-1

[Event "January 2 Early 2024"]
[Site "https://www.chess.com"]
[Date "2024.01.02"]
[Round "9"]
[White "Lewtak, Damian"]
[Black "Maksimovic, Bojan"]
[Result "1/2-1/2"]
[Board "30"]
[TimeControl "180+1"]
[WhiteFideId "1141724"]
[BlackFideId "14408120"]
[WhiteElo "2737"]
[BlackElo "2866"]
[WhiteTeam "POL"]
[BlackTeam "BIH"]
[WhiteClock "0:00:28"]
[BlackClock "0:00:47"]

1. e4 {[%clk 0:03:00]}  a6 {[%clk 0:02:59]} 2. d4 {[%clk 0:02:59]}  e6 {[%clk 0:03:00]} 3. c4 {[%clk 0:02:58]}  d5 {[%clk 0:03:00]} 4. Nc3 {[%clk 0:02:56]}  dxe4 {[%clk 0:02:59]} 5. Nxe4 {[%clk 0:02:55]}  Bb4+ {[%clk 0:03:00]} 6. Nc3 {[%clk 0:02:55]}  c5 {[%clk 0:03:00]} 7. Be3 {[%clk 0:02:51]}  Nf6 {[%clk 0:02:57]} 8. dxc5 {[%clk 0:02:49]}  Qa5 {[%clk 0:02:40]} 9. Qc2 {[%clk 0:02:44]}  O-O {[%clk 0:02:35]} 10. Bd3 {[%clk 0:02:40]}  Bxc5 {[%clk 0:02:30]} 11. Bxc5 {[%clk 0:02:37]}  Qxc5 {[%clk 0:02:31]} 12. Nge2 {[%clk 0:02:32]}  Nc6 {[%clk 0:02:29]} 13. a3 {[%clk 0:02:30]}  Nd4 {[%clk 0:01:53]} 14. Nxd4 {[%clk 0:02:28]}  Qxd4 {[%clk 0:01:54]} 15. O-O {[%clk 0:02:28]}  e5 {[%clk 0:01:52]} 16. Rad1 {[%clk 0:02:25]}  Qh4 {[%clk 0:01:52]} 17. Ne4 {[%clk 0:02:20]}  h6 {[%clk 0:01:21]} 18. g3 {[%clk 0:02:14]}  Qh3 {[%clk 0:01:20]} 19. Nxf6+ {[%clk 0:02:12]}  gxf6 {[%clk 0:01:21]} 20. Be4 {[%clk 0:02:11]}  Be6 {[%clk 0:01:21]} 21. Bxb7 {[%clk 0:02:06]}  Rad8 {[%clk 0:01:22]} 22. Bg2 {[%clk 0:02:04]}  Qh5 {[%clk 0:01:21]} 23. c5 {[%clk 0:02:01]}  Bg4 {[%clk 0:01:21]} 24. Rxd8 {[%clk 0:01:58]}  Rxd8 {[%clk 0:01:22]} 25. c6 {[%clk 0:01:58]}  Kg7 {[%clk 0:01:22]} 26. c7 {[%clk 0:01:54]}  Rf8 {[%clk 0:01:19]} 27. Bb7 {[%clk 0:01:49]}  Bc8 {[%clk 0:01:18]} 28. Bxc8 {[%clk 0:01:48]}  Rxc8 {[%clk 0:01:19]} 29. Rc1 {[%clk 0:01:44]}  Qf3 {[%clk 0:01:11]} 30. Qc6 {[%clk 0:01:41]}  Qb3 {[%clk 0:01:05]} 31. Qxa6 {[%clk 0:01:29]}  Qxb2 {[%clk 0:01:05]} 32. Qxc8 {[%clk 0:01:29]}  Qxc1+ {[%clk 0:01:05]} 33. Kg2 {[%clk 0:01:30]}  Qc6+ {[%clk 0:01:06]} 34. Kh3 {[%clk 0:01:25]}  h5 {[%clk 0:00:54]} 35. Qd8 {[%clk 0:01:16]}  Qe6+ {[%clk 0:00:52]} 36. Kg2 {[%clk 0:01:12]}  Qc6+ {[%clk 0:00:52]} 37. f3 {[%clk 0:00:41]}  Qc2+ {[%clk 0:00:51]} 38. Kf1 {[%clk 0:00:40]}  Qc1+ {[%clk 0:00:51]} 39. Ke2 {[%clk 0:00:40]}  Qc2+ {[%clk 0:00:51]} 40. Ke3 {[%clk 0:00:40]}  Qc3+ {[%clk 0:00:46]} 41. Kf2 {[%clk 0:00:34]}  Qc2+ {[%clk 0:00:46]} 42. Kf1 {[%clk 0:00:32]}  Qc1+ {[%clk 0:00:46]} 43. Kg2 {[%clk 0:00:32]}  Qc2+ {[%clk 0:00:47]} 44. Kf1 {[%clk 0:00:28]} 1/2-1/2